[Event "FRA-ch Youth U18 2018"]
[Site "Agen"]
[Date "2018.04.22"]
[Round "9"]
[White "Salvador, Lucie"]
[Black "Rollot, Florence"]
[Result "0-1"]
[ECO "A04"]
[WhiteElo "1955"]
[BlackElo "2042"]
[Annotator "NA RC"]
[PlyCount "140"]
[EventDate "2018.??.??"]
[EventType "swiss"]
[EventCountry "FRA"]
[SourceTitle "playchess.com"]
[Source "ChessBase"]
[SourceQuality "1"]
[TimeControl "5400+30"]

1. Nf3 {[%emt 0:00:00]} c5 {[%emt 0:00:36]} 2. c4 {[%emt 0:00:00]} Nc6 {[%emt 0:01:33]} 3. g3 {[%emt 0:00:37]} g6 {[%emt 0:00:12]} 4. Bg2 {[%emt 0:00:36]} Bg7 {[%emt 0:00:11]} 5. O-O {[%emt 0:01:18]} e6 {[%emt 0:01:46]} 6. Nc3 {[%emt 0:07:48]} Nge7 {[%emt 0:00:56]} 7. d3 {[%emt 0:17:23]} h6 {[%emt 0:03:31] A37: Symmetrical English vs ...g6: 4 Bg2 Bg7 5 Nf3} (7... O-O 8. Bg5 h6 9. Bd2 b6 10. a3 Bb7 11. Rb1 a5 12. Nb5 d5 13. Qc1 Kh7 14. Rd1 Qd7 15. e3 Rac8 16. Qc2 e5 17. cxd5 Nxd5 {½-½ (85) Almasi,Z (2682)-Ponkratov,P (2613) Riadh 2017}) 8. Bf4 {[%emt 0:06:10]} d6 {[%emt 0:08:19]} 9. Qc1 {[%emt 0:06:04]} Nf5 {[%emt 0:11:36]} 10. a3 $146 {[%emt 0:07:04]} ({Find the theoretical novelty and annotate with similar games:} 10. h4 a6 11. Rb1 Rb8 12. a3 a5 13. Re1 e5 14. Bd2 Be6 {0-1 (44) Noroozi,O (2391)-Bagheri,M (2266) Nakhchivan 2016}) 10... Na5 {[%emt 0:10:38]} 11. Rb1 {[%emt 0:11:02]} Nb3 {[%emt 0:16:21]} 12. Qd1 {[%emt 0:00:47]} Nbd4 {[%emt 0:01:26]} 13. Bd2 {[%emt 0:07:25]} O-O {[%emt 0:03:55]} 14. b4 {[%emt 0:02:41]} cxb4 {[%emt 0:07:20]} 15. axb4 {[%emt 0:00:08]} Rb8 {[%emt 0:00:41]} 16. e3 {[%emt 0:06:53]} Nxf3+ {[%emt 0:00:46]} 17. Bxf3 {[%emt 0:00:24]} Ne7 {[%emt 0:04:45]} 18. Qb3 {[%emt 0:06:49]} b6 {[%emt 0:01:34]} 19. d4 {[%emt 0:01:50]} a6 {[%emt 0:02:22]} 20. Rfd1 {[%emt 0:01:48]} Qc7 {[%emt 0:01:45]} 21. Rbc1 {[%emt 0:03:39]} f5 {[%emt 0:01:53]} 22. Ne2 {[%emt 0:01:33]} Kh7 {[%emt 0:03:57]} 23. Qa3 {[%emt 0:04:41]} e5 {[%emt 0:02:43]} 24. Bg2 {[%emt 0:01:48]} e4 {[%emt 0:01:03]} 25. f3 {[%emt 0:01:21]} Bb7 {[%emt 0:00:50] [#]} 26. fxe4 {[%emt 0:01:43]} (26. d5 $1 $16) 26... Rbe8 {[%emt 0:05:09]} 27. exf5 {[%emt 0:01:07]} Nxf5 {[%emt 0:01:13]} 28. Bxb7 {[%emt 0:00:45]} Qxb7 {[%emt 0:00:06]} 29. d5 {[%emt 0:00:18]} Qe7 {[%emt 0:00:49]} 30. Nf4 {[%emt 0:00:43]} Nxe3 {[%emt 0:01:25]} 31. Bxe3 {[%emt 0:00:28]} Qxe3+ {[%emt 0:00:12]} 32. Qxe3 {[%emt 0:00:03]} Rxe3 {[%emt 0:00:01]} 33. Ne6 {[%emt 0:00:09]} Rf5 {[%emt 0:04:36]} 34. Rd2 {[%emt 0:01:16]} Bc3 {[%emt 0:00:27]} 35. Ra2 {[%emt 0:00:24]} a5 {[%emt 0:01:29]} 36. bxa5 {[%emt 0:00:39]} Bxa5 {[%emt 0:00:03]} 37. Nd4 {[%emt 0:00:32]} Rf7 {[%emt 0:00:38]} 38. Nc6 {[%emt 0:00:20]} Bc3 {[%emt 0:01:06]} 39. Rb1 {[%emt 0:00:39]} Re4 {[%emt 0:00:36]} 40. Ra4 {[%emt 0:00:22]} Rb7 {[%emt 0:00:46]} 41. Rc1 {[%emt 0:00:25]} Bd2 {[%emt 0:00:35]} 42. Rf1 {[%emt 0:00:36]} Be3+ {[%emt 0:00:16]} 43. Kg2 {[%emt 0:00:16]} Bc5 {[%emt 0:00:19]} 44. Nd8 {[%emt 0:00:48]} Rd7 {[%emt 0:00:44]} 45. Ne6 {[%emt 0:00:08]} Re7 {[%emt 0:00:55]} 46. Ra8 {[%emt 0:00:57]} g5 {[%emt 0:00:44]} 47. Nxc5 {[%emt 0:00:30]} bxc5 {[%emt 0:00:15]} 48. Ra6 {[%emt 0:00:23]} Rxc4 {[%emt 0:00:27]} 49. Rxd6 {[%emt 0:00:04]} Rc2+ {[%emt 0:00:09]} 50. Rf2 {[%emt 0:00:20]} Rc1 {[%emt 0:01:04]} 51. Rdf6 {[%emt 0:00:27]} Rd1 {[%emt 0:00:33]} 52. R2f5 {[%emt 0:01:10]} Rd7 {[%emt 0:00:37]} 53. Rf7+ {[%emt 0:00:23]} Rxf7 {[%emt 0:00:06]} 54. Rxf7+ {[%emt 0:00:02]} Kg6 {[%emt 0:00:15]} 55. Rd7 {[%emt 0:00:07]} Kf5 {[%emt 0:00:11]} 56. Rf7+ {[%emt 0:01:28]} Kg6 {[%emt 0:00:35]} (56... Ke5 $17 57. Re7+ Kd6 58. Re6+ Kxd5 59. Rxh6 c4) 57. Rd7 {[%emt 0:00:11]} Rd2+ {[%emt 0:00:06]} 58. Kf3 {[%emt 0:00:15]} Kf5 {[%emt 0:01:02]} 59. Rd8 {[%emt 0:00:53]} Ke5 {[%emt 0:01:12]} 60. Re8+ {[%emt 0:00:40]} Kf5 {[%emt 0:00:21]} 61. g4+ {[%emt 0:00:32]} Kf6 {[%emt 0:00:37]} 62. Re6+ {[%emt 0:00:26]} Kg7 {[%emt 0:00:02]} 63. d6 {[%emt 0:00:33]} Rxh2 {[%emt 0:00:20]} 64. Ke3 {[%emt 0:00:34]} Rh3+ {[%emt 0:00:26]} 65. Ke4 {[%emt 0:00:18]} c4 {[%emt 0:00:31]} 66. Re7+ $2 {[%emt 0:00:17]} ({White has to play} 66. Kd4 $18 Rh2 67. Kxc4) 66... Kf6 {[%emt 0:00:16]} 67. Re5 {[%emt 0:00:56]} Rd3 {[%emt 0:00:41]} 68. Rd5 $2 {[%emt 0:00:28] [#]} (68. Rc5 $11) 68... Rxd5 $1 {[%emt 0:00:20]} 69. Kxd5 {[%emt 0:00:04]} c3 {[%emt 0:00:07]} 70. d7 {[%emt 0:00:04]} Ke7 {[%emt 0:00:06]} 0-1

[Event "FRA-ch Youth U18 2018"]
[Site "Agen"]
[Date "2018.04.22"]
[Round "9"]
[White "El Barbry, Sarah"]
[Black "Chachiachvili, Mariam"]
[Result "1-0"]
[ECO "C44"]
[WhiteElo "1750"]
[BlackElo "1752"]
[Annotator "NA RC"]
[PlyCount "69"]
[EventDate "2018.??.??"]
[EventType "swiss"]
[EventCountry "FRA"]
[SourceTitle "playchess.com"]
[Source "ChessBase"]
[SourceQuality "1"]
[TimeControl "5400+30"]

1. e4 {[%emt 0:02:12]} e5 {[%emt 0:00:46]} 2. Nf3 {[%emt 0:00:31]} Nc6 {[%emt 0:00:14]} 3. c3 {[%emt 0:00:03]} Nf6 {[%emt 0:01:36]} 4. d4 {[%emt 0:00:19]} exd4 {[%emt 0:05:06]} 5. e5 {[%emt 0:00:08]} Qe7 {[%emt 0:05:20]} 6. cxd4 {[%emt 0:09:53]} d6 {[%emt 0:04:31]} 7. Bb5 {[%emt 0:03:33]} d5 {[%emt 0:15:49]} 8. Nc3 {[%emt 0:02:36]} a6 {[%emt 0:08:05]} 9. Be2 {[%emt 0:01:23]} Ne4 {[%emt 0:05:27]} 10. O-O {[%emt 0:11:26]} Nxc3 {[%emt 0:01:11]} 11. bxc3 {[%emt 0:00:01]} Be6 {[%emt 0:01:54]} 12. Qa4 {[%emt 0:07:41]} Qd7 {[%emt 0:07:44]} 13. Rb1 {[%emt 0:01:51]} Rb8 {[%emt 0:01:05]} 14. Qc2 {[%emt 0:04:50]} g6 {[%emt 0:05:51]} 15. h3 {[%emt 0:02:56]} Bg7 {[%emt 0:00:41]} 16. Ba3 {[%emt 0:00:33]} b5 {[%emt 0:02:26]} 17. Bd3 {[%emt 0:01:44]} Ne7 {[%emt 0:01:08]} 18. Nd2 {[%emt 0:01:46]} O-O {[%emt 0:00:46]} 19. Nb3 {[%emt 0:01:41]} Rfe8 {[%emt 0:02:55]} 20. Nc5 {[%emt 0:00:33]} Qc6 {[%emt 0:00:42]} 21. Bc1 {[%emt 0:01:48]} Bf5 {[%emt 0:03:05]} 22. Bg5 {[%emt 0:02:41]} Bxd3 {[%emt 0:01:01]} 23. Qxd3 {[%emt 0:00:29]} h6 {[%emt 0:01:16]} 24. Bf4 {[%emt 0:01:45]} Bf8 {[%emt 0:05:31]} 25. Qd2 {[%emt 0:02:30]} Kh7 {[%emt 0:01:46]} 26. Rfe1 {[%emt 0:00:44]} Ng8 {[%emt 0:00:12]} 27. Nd3 {[%emt 0:01:23]} Qe6 {[%emt 0:02:26]} 28. Bg3 {[%emt 0:04:19]} Rbc8 {[%emt 0:01:57]} 29. Nf4 {[%emt 0:00:47]} Qd7 {[%emt 0:00:36]} 30. Qd3 {[%emt 0:01:10]} c6 {[%emt 0:02:26]} 31. h4 {[%emt 0:05:07]} Kh8 {[%emt 0:02:48]} 32. e6 {[%emt 0:04:07]} fxe6 {[%emt 0:04:44]} 33. Nxg6+ {[%emt 0:00:39]} Kg7 {[%emt 0:00:47]} 34. Ne5 {[%emt 0:00:25]} Qe7 {[%emt 0:01:28]} 35. Qg6+ 1-0

[Event "FRA-ch Youth U18 2018"]
[Site "Agen"]
[Date "2018.04.22"]
[Round "9"]
[White "Milroy, Melena"]
[Black "Belluire, Beatrice"]
[Result "0-1"]
[ECO "C00"]
[WhiteElo "1718"]
[BlackElo "1818"]
[Annotator "NA RC"]
[PlyCount "60"]
[EventDate "2018.??.??"]
[EventType "swiss"]
[EventCountry "FRA"]
[SourceTitle "playchess.com"]
[Source "ChessBase"]
[SourceQuality "1"]
[TimeControl "5400+30"]

1. e4 {[%emt 0:00:00]} e6 {[%emt 0:00:10]} 2. d4 {[%emt 0:00:00]} d5 {[%emt 0:00:00]} 3. Bd3 {[%emt 0:00:00]} Bd7 {[%emt 0:01:38]} 4. e5 {[%emt 0:05:18]} c5 {[%emt 0:00:13]} 5. c3 {[%emt 0:00:05]} Nc6 {[%emt 0:00:14]} 6. Nf3 {[%emt 0:00:59]} cxd4 {[%emt 0:03:56]} 7. cxd4 {[%emt 0:00:30]} Qb6 {[%emt 0:04:18]} 8. Be2 {[%emt 0:02:52]} Nge7 {[%emt 0:00:40]} 9. Qb3 $2 {[%emt 0:17:58]} (9. Nc3 $11 {and White is okay.}) 9... Nxd4 {[%emt 0:20:27]} 10. Nxd4 {[%emt 0:27:38]} Qxd4 $19 {[%emt 0:00:02]} 11. Qxb7 {[%emt 0:00:41]} Bc6 {[%emt 0:00:19]} 12. Be3 {[%emt 0:06:12]} Qxe5 {[%emt 0:02:01]} 13. Bb5 {[%emt 0:03:11]} Rc8 {[%emt 0:07:03]} 14. O-O {[%emt 0:06:18]} d4 {[%emt 0:07:09]} 15. Rc1 {[%emt 0:13:04]} Qxb5 {[%emt 0:01:14]} 16. Qxb5 {[%emt 0:04:10]} Bxb5 {[%emt 0:00:04]} 17. Rxc8+ {[%emt 0:00:09]} Nxc8 {[%emt 0:00:01]} 18. Bxd4 {[%emt 0:00:09]} f6 {[%emt 0:01:30]} 19. Nc3 {[%emt 0:02:50]} Bd7 {[%emt 0:00:07]} 20. Ne4 {[%emt 0:03:58]} e5 {[%emt 0:01:01]} 21. Be3 {[%emt 0:00:12]} f5 {[%emt 0:01:27]} 22. Nc3 {[%emt 0:00:42]} f4 {[%emt 0:00:40]} 23. Bd2 {[%emt 0:00:15]} Kf7 {[%emt 0:01:22]} 24. Re1 {[%emt 0:00:19]} Bd6 {[%emt 0:00:14]} 25. Ne4 {[%emt 0:00:44]} Re8 {[%emt 0:00:28]} 26. Bc3 {[%emt 0:00:20]} Bb8 {[%emt 0:00:35]} 27. Nc5 {[%emt 0:00:53]} Bf5 {[%emt 0:00:38]} 28. f3 {[%emt 0:00:10]} Bc7 {[%emt 0:01:32]} 29. Kf1 {[%emt 0:01:02]} Bb6 {[%emt 0:01:56]} 30. Na4 {[%emt 0:01:30]} Bd3+ {[%emt 0:00:12]} 0-1

[Event "FRA-ch Youth U18 2018"]
[Site "Agen"]
[Date "2018.04.22"]
[Round "9"]
[White "Bauer, Elise"]
[Black "Lomandong, Noela-Joyce"]
[Result "1/2-1/2"]
[ECO "B06"]
[WhiteElo "1489"]
[BlackElo "2053"]
[Annotator "NA RC"]
[PlyCount "86"]
[EventDate "2018.??.??"]
[EventType "swiss"]
[EventCountry "FRA"]
[SourceTitle "playchess.com"]
[Source "ChessBase"]
[SourceQuality "1"]
[TimeControl "5400+30"]

1. e4 {[%emt 0:00:00]} g6 2. d4 {[%emt 0:00:08]} Bg7 {[%emt 0:03:32]} 3. Nc3 {[%emt 0:00:18]} a6 {[%emt 0:07:29]} 4. a4 {[%emt 0:02:53]} Nc6 {[%emt 0:04:39]} 5. Be3 {[%emt 0:01:37]} d6 {[%emt 0:01:03]} 6. Nf3 {[%emt 0:04:59]} Nf6 {[%emt 0:08:29]} 7. h3 {[%emt 0:03:04]} O-O {[%emt 0:01:31]} 8. Qd2 {[%emt 0:03:20]} e5 {[%emt 0:03:44] B08: Pirc Defence: Classical System} 9. d5 {[%emt 0:05:52]} Ne7 {[%emt 0:00:27] LiveBook: 10 Games} 10. Bh6 {[%emt 0:03:01]} (10. g4 c6 11. dxc6 bxc6 12. O-O-O d5 13. Nxe5 Be6 14. Bg2 Nxe4 15. Nxe4 dxe4 16. Nd7 Bxd7 17. Qxd7 {0-1 (24) Pogosyan,S (2340)-Gasanov,E (2490) Moscow 2018}) 10... Kh8 {[%emt 0:08:32]} 11. Nh2 $146 {[%emt 0:09:43]} ({Predecessor:} 11. g4 Bd7 12. Bd3 b5 13. O-O Qc8 14. Nh2 c6 15. Bxg7+ Kxg7 16. f4 cxd5 17. fxe5 {½-½ (40) Sabol,M (2366)-Rubal,A (2308) Czech Republic 2015}) 11... Bxh6 {[%emt 0:01:21]} 12. Qxh6 {[%emt 0:01:02]} Neg8 {[%emt 0:01:40]} 13. Qg5 {[%emt 0:04:12]} Nh5 {[%emt 0:03:34]} 14. Qe3 {[%emt 0:07:47]} f5 {[%emt 0:07:20]} 15. Nf3 {[%emt 0:06:33]} Qf6 {[%emt 0:07:59]} 16. Nd2 {[%emt 0:05:05]} fxe4 {[%emt 0:10:19]} 17. Ncxe4 {[%emt 0:02:45]} Qf4 {[%emt 0:02:10]} 18. g4 {[%emt 0:06:16]} Qxe3+ {[%emt 0:04:00]} 19. fxe3 {[%emt 0:00:06]} Nhf6 {[%emt 0:00:05]} 20. c4 {[%emt 0:01:00]} Nxe4 {[%emt 0:03:01]} 21. Nxe4 {[%emt 0:00:12]} Nf6 {[%emt 0:00:42]} 22. Nc3 {[%emt 0:03:20]} Bd7 {[%emt 0:04:58]} 23. Bg2 {[%emt 0:03:20]} Kg7 {[%emt 0:03:44]} 24. Ke2 {[%emt 0:01:17]} Rf7 {[%emt 0:01:31]} 25. Rhf1 {[%emt 0:01:50]} Raf8 {[%emt 0:00:15]} 26. b4 {[%emt 0:01:12]} h5 {[%emt 0:03:31]} 27. g5 {[%emt 0:01:05]} Ne8 {[%emt 0:00:39]} 28. b5 {[%emt 0:05:02]} Rxf1 {[%emt 0:00:30]} 29. Rxf1 {[%emt 0:00:25]} a5 {[%emt 0:04:22]} 30. Rb1 {[%emt 0:07:11]} Rf5 {[%emt 0:03:14]} 31. h4 {[%emt 0:00:40]} b6 {[%emt 0:00:27]} 32. Bh3 {[%emt 0:03:35]} Rf7 {[%emt 0:00:06]} 33. Bxd7 {[%emt 0:00:55]} Rxd7 $16 {[%emt 0:00:01]} 34. Rf1 {[%emt 0:00:28]} Rf7 {[%emt 0:01:02]} 35. e4 {[%emt 0:03:21]} Rxf1 {[%emt 0:00:31]} 36. Kxf1 {[%emt 0:00:01]} Kf7 {[%emt 0:00:09]} 37. Na2 {[%emt 0:00:46]} Ng7 {[%emt 0:00:05]} 38. Ke2 {[%emt 0:00:31]} Ke7 {[%emt 0:00:07]} 39. Nc1 {[%emt 0:00:28]} Kf7 {[%emt 0:00:13]} 40. Ke3 {[%emt 0:00:25]} Ke7 {[%emt 0:00:12]} 41. Kd3 {[%emt 0:00:27]} Kd7 {[%emt 0:00:21]} 42. Nb3 {[%emt 0:00:19]} Ke7 {[%emt 0:00:06]} 43. Kc3 {[%emt 0:00:32]} Kd7 {[%emt 0:00:11]} 1/2-1/2